fUSD/lending_fUSD_20240819
["ID","MTS","AMOUNT","RATE_DAILY","PERIOD"]
[335284985,1724071832192,-944.33,0.00010899,2]
[335284986,1724071832201,-585.50492,0.00010899,2]
[335284987,1724071832210,-500.0,0.00010899,2]
[335284988,1724071832219,-500.0,0.00010899,2]
[335284989,1724071832228,-420.33,0.00010899,2]
[335284990,1724071832238,-500.0,0.00010899,2]
[335284991,1724071832247,-500.0,0.00010899,2]
[335284992,1724071832256,-500.0,0.00010899,2]
[335284993,1724071832265,-500.0,0.00010899,2]
[335284994,1724071832274,-500.0,0.00010899,2]
[335284995,1724071832283,-500.0,0.00010899,2]
[335284996,1724071832292,-500.0,0.00010899,2]
[335284997,1724071832302,-500.0,0.00010899,2]
[335284998,1724071832311,-500.0,0.00010899,2]
[335284999,1724071832320,-291.77566525,0.00010899,2]
[335285000,1724071832329,-500.0,0.00010899,2]
[335285001,1724071832338,-500.0,0.00010899,2]
[335285002,1724071832347,-500.0,0.00010899,2]
[335285003,1724071832357,-500.0,0.00010899,2]
[335285004,1724071832366,-500.0,0.00010899,2]
[335285005,1724071832375,-500.0,0.00010899,2]
[335285006,1724071832384,-500.0,0.00010899,2]
[335285007,1724071832393,-500.0,0.00010899,2]
[335285008,1724071832404,-1252.59,0.00010899,2]
[335285009,1724071832413,-1252.59,0.00010899,2]
[335285010,1724071832422,-1252.59,0.00010899,2]
[335285011,1724071832431,-1262.94,0.00010899,2]
[335285012,1724071832443,-1262.94,0.00010899,2]
[335285013,1724071832452,-1262.94,0.00010899,2]
[335285014,1724071832461,-500.0,0.00010899,2]
[335285015,1724071832470,-500.0,0.00010899,2]
[335285016,1724071832479,-516.29108659,0.00010899,2]
[335285017,1724071832489,-1022.48,0.00010899,2]
[335285018,1724071832498,-1022.48,0.00010899,2]
[335285019,1724071832508,-1022.48,0.00010899,2]
[335285020,1724071832517,-182.73467542,0.00010899,2]
[335285021,1724071832526,-500.0,0.00010899,2]
[335285022,1724071832536,-500.0,0.00010899,2]
[335285023,1724071832545,-500.0,0.00010899,2]
[335285024,1724071832554,-2011.59,0.000109,2]
[335285025,1724071832563,-136857.35137767,0.000109,2]
[335285026,1724071832575,-1451.24090158,0.000109,2]
[335285027,1724071832585,-1133.16129937,0.000109,2]
[335285028,1724071832597,-2084.775,0.000109,2]
[335285029,1724071832607,-1425.76150624,0.000109,2]
[335285033,1724071837487,-311.0,9.999e-05,2]
[335285034,1724071837606,-255.53745705,9.999e-05,2]
[335285035,1724071837734,-2605.94503093,9.999e-05,2]
[335285471,1724071842838,-648.32500001,9.999e-05,2]
[335285480,1724071842898,-8637.78319808,9.999e-05,2]
[335285496,1724071843009,-6448.12507011,9.999e-05,2]
[335285518,1724071843233,-787.0,9.999e-05,2]
[335285598,1724071844008,-1685.57707386,9.999e-05,2]
[335285600,1724071844019,-2514.42292614,9.999e-05,2]
[335285761,1724071845687,-4545.31242003,9.999e-05,2]
[335285765,1724071845699,-264.56933083,9.999e-05,2]
[335285767,1724071845711,-20415.43082963,9.999e-05,2]
[335285769,1724071845721,-5501.5662,0.000107,2]
[335285771,1724071845730,-16081.89524964,0.000109,2]
[335285773,1724071845742,-4738.44270238,0.000109,2]
[335285776,1724071845755,-6287.95154023,0.000109,2]
[335285778,1724071845767,-2584.80322748,0.000109,2]
[335285796,1724071845938,-390.67842279,0.000109,2]
[335285798,1724071845950,-1206.09817827,0.000109,2]
[335287719,1724072294471,178.43,8.219e-05,2]
[335287724,1724072791032,177.05,8.219e-05,2]
[335287725,1724072796717,3639.8892963,0.00014,30]
[335288096,1724073039863,-156.3474976,9.929e-05,2]
[335288098,1724073039874,-143.6525024,9.943e-05,2]
[335288110,1724073039978,-11.3474976,9.943e-05,2]
[335288112,1724073039988,-1000.0,9.97e-05,2]
[335288114,1724073039997,-184.76,0.0001001,2]
[335288116,1724073040007,-171.0,0.0001006,2]
[335288118,1724073040016,-215.0,0.00010061,2]
[335288120,1724073040025,-177.05,0.00010475,2]
[335288122,1724073040034,-294.84541432,0.0001079,2]
[335288437,1724073043805,-807.98457568,0.0001079,2]
[335288438,1724073043815,-150.0,0.00010799,2]
[335288439,1724073043824,-300.0,0.00010799,2]
[335288441,1724073043834,-258.51784407,0.000108,2]
[335288443,1724073043845,-12.19825593,0.000108,2]
[335288445,1724073043855,-8402.5156,0.000108,2]
[335288447,1724073043865,-1389.94909015,0.000108,2]
[335288646,1724073045736,-812.74759037,0.000108,2]
[335288661,1724073045795,-5730.52491948,0.000108,2]
[335288664,1724073045805,-20000.0,0.000108,2]
[335288667,1724073045814,-213.4978,0.000108,2]
[335288669,1724073045824,-327.95529513,0.000108,2]
[335288672,1724073045833,-499.99,0.0001089,2]
[335288676,1724073045843,-782.83094332,0.0001089,2]
[335288679,1724073045852,-426.33452023,0.0001089,2]
[335288682,1724073045862,-894.67,0.00010899,2]
[335288685,1724073045872,-894.67,0.00010899,2]
[335288688,1724073045881,-169.03616623,0.00010899,2]
[335288691,1724073045890,-152.75,0.00010899,2]
[335288694,1724073045900,-501.82943437,0.00010899,2]
[335288696,1724073045909,-500.0,0.00010899,2]
[335288697,1724073045919,-500.0,0.00010899,2]
[335288699,1724073045929,-610.74,0.00010899,2]
[335288701,1724073045940,-500.0,0.00010899,2]
[335288703,1724073045949,-500.0,0.00010899,2]
[335288705,1724073045958,-8.54564181,0.00010899,2]
[335288708,1724073045974,-491.45435819,0.00010899,2]
[335288710,1724073045983,-44.18641889,0.00010899,2]
[335288712,1724073045994,-455.81358111,0.00010899,2]
[335288714,1724073046004,-500.0,0.00010899,2]
[335288716,1724073046013,-190.03922118,0.00010899,2]
[335288717,1724073046022,-728.21136209,0.00010899,2]
[335288720,1724073046033,-376.85863791,0.00010899,2]
[335288722,1724073046042,-1105.07,0.00010899,2]
[335288724,1724073046052,-892.99296004,0.00010899,2]
[335288726,1724073046063,-203.02703996,0.00010899,2]
[335288728,1724073046072,-1096.02,0.00010899,2]
[335288730,1724073046082,-500.0,0.00010899,2]
[335288732,1724073046092,-500.0,0.00010899,2]
[335288734,1724073046102,-826.28,0.00010899,2]
[335288736,1724073046111,-474.67296004,0.00010899,2]
[335288738,1724073046122,-351.60703996,0.00010899,2]
[335288740,1724073046131,-2576.82963527,0.000109,2]
[335289167,1724073278959,166.89,8.219e-05,2]
[335289170,1724073673967,150.438468,0.00014,30]
[335289171,1724073760164,166.09,8.219e-05,2]
[335289174,1724073849265,5000.0,0.00014,32]
[335289175,1724073915852,-213.30600429,9.91e-05,2]
[335289176,1724073915876,-1050.0,0.0001,2]
[335289177,1724073915904,-400.0,0.0001004,2]
[335289178,1724073915929,-200.0,0.00010084,2]
[335289179,1724073915955,-166.09,0.00010477,2]
[335289180,1724073915978,-1706.88138312,0.00010477,2]
[335289181,1724073916002,-919.02499,0.0001079,2]
[335289182,1724073916026,-150.0,0.00010799,2]
[335289183,1724073916049,-16660.02212259,0.000108,2]
[335289184,1724073919518,-19330.37607741,0.000108,2]
[335289185,1724073919543,-7500.0,0.000108,2]
[335289186,1724073919568,-1000.0,0.000108,2]
[335289187,1724073919593,-764.0,0.00010894,2]
[335289188,1724073919620,-1405.62392259,0.00010899,2]
[335289189,1724073920022,-1169.75670283,0.00010899,2]
[335289190,1724073920047,-5606.99159999,0.00010899,2]
[335289191,1724073920071,-1004.68,0.00010899,2]
[335289192,1724073920095,-1004.68,0.00010899,2]
[335289193,1724073920120,-820.11,0.00010899,2]
[335289194,1724073920144,-820.11,0.00010899,2]
[335289195,1724073920169,-1012.98,0.00010899,2]
[335289196,1724073920194,-1012.98,0.00010899,2]
[335289197,1724073920218,-757.43,0.00010899,2]
[335289198,1724073920242,-757.43,0.00010899,2]
[335289199,1724073920266,-500.0,0.00010899,2]
[335289200,1724073920292,-500.0,0.00010899,2]
[335289201,1724073920317,-500.0,0.00010899,2]
[335289202,1724073920341,-500.0,0.00010899,2]
[335289203,1724073920366,-500.0,0.00010899,2]
[335289204,1724073920389,-500.0,0.00010899,2]
[335289205,1724073920412,-500.0,0.00010899,2]
[335289206,1724073920435,-500.0,0.00010899,2]
[335289207,1724073920457,-500.0,0.00010899,2]
[335289208,1724073920480,-500.0,0.00010899,2]
[335289209,1724073920502,-500.0,0.00010899,2]
[335289210,1724073920524,-500.0,0.00010899,2]
[335289211,1724073920546,-584.26408922,0.00010899,2]
[335289212,1724073920569,-156.3474976,0.00010899,2]
[335289213,1724073920592,-9292.24011036,0.000109,2]
[335289214,1724073920646,-30000.0,0.000109,2]
[335289215,1724073926862,-800.0,0.00010191,2]
[335289216,1724073926886,-19200.0,0.000109,2]
[335289217,1724073929867,-20000.0,0.000109,2]
[335289224,1724074128229,400.0,0.000141,30]
[335289265,1724074231955,-200.0,9.971e-05,2]
[335289266,1724074231965,-4619.72288881,0.00010839,2]
[335289267,1724074231977,-4843.30926104,0.00010839,2]
[335289268,1724074232014,-438.58020339,0.00010839,2]
[335289269,1724074232026,-1900.0,0.00010839,2]
[335289270,1724074232079,-7131.55321232,0.00010839,2]
[335289271,1724074232094,-150.0,0.00010844,2]
[335289272,1724074232106,-15895.69406859,0.00010845,2]
[335289308,1724074232558,-2.448e-05,0.00010845,2]
[335289331,1724074238055,-403.28275324,0.00010845,2]
[335289332,1724074238116,-1456.07776419,0.00010845,2]
[335289333,1724074238129,-432.81540041,0.00010845,2]
[335289352,1724074240202,-745.29555465,0.00010845,2]
[335289353,1724074240212,-393.38621451,0.00010845,2]
[335289354,1724074240225,-2060.13405684,0.00010845,2]
[335289355,1724074240288,-950.90019971,0.00010845,2]
[335289356,1724074240542,-869.59654346,0.00010845,2]
[335289357,1724074240605,-358.84584114,0.00010845,2]
[335289358,1724074240618,-14300.3027099,0.00010845,2]
[335289359,1724074240629,-18933.16556556,0.00010848,2]
[335289360,1724074240640,-18933.16556556,0.00010858,2]
[335289361,1724074240651,-18933.16556556,0.00010871,2]
[335289362,1724074240661,-1000.0,0.00010874,3]
[335289363,1724074240673,-18933.16556556,0.00010877,2]
[335289364,1724074240683,-18933.16556556,0.00010879,2]
[335289365,1724074240693,-694.31,0.00010899,2]
[335289366,1724074240704,-500.0,0.00010899,2]
[335289367,1724074240714,-500.0,0.00010899,2]
[335289369,1724074240725,-271.35669636,0.00010899,2]
[335289371,1724074240735,-500.0,0.00010899,2]
[335289373,1724074240746,-500.0,0.00010899,2]
[335289375,1724074240756,-500.0,0.00010899,2]
[335289377,1724074240766,-500.0,0.00010899,2]
[335289378,1724074240776,-330.18515423,0.00010899,2]
[335289380,1724074240786,-928.57,0.00010899,2]
[335289382,1724074240796,-928.57,0.00010899,2]
[335289384,1724074240806,-920.96,0.00010899,2]
[335289386,1724074240816,-920.96,0.00010899,2]
[335289388,1724074240826,-72.68402661,0.00010899,2]
[335289455,1724074243011,-155.0,0.0001089,2]
[335289457,1724074243022,-439.76,0.00010899,2]
[335289469,1724074243830,-239.32597339,0.00010899,2]
[335289470,1724074243840,-751.77,0.00010899,2]
[335289471,1724074243852,-500.0,0.00010899,2]
[335289472,1724074243861,-500.0,0.00010899,2]
[335289473,1724074243871,-67980.2593495,0.000109,2]
[335289481,1724074246378,-1182.33396099,0.000109,2]
[335289482,1724074246418,-665.38,0.00010899,2]
[335289483,1724074246427,-9790.41454278,0.000109,2]
[335289484,1724074246449,-31123.71429121,0.000109,2]
[335289752,1724074254240,157.03,8.271e-05,2]
[335289753,1724074286585,2191.44432679,5.881e-05,7]
[335289754,1724074352605,860.72027175,7.128e-05,2]
[335289757,1724074601557,155.0,8.64e-05,2]
[335289758,1724074602508,357.4813523,8.64e-05,2]
[335289761,1724074720876,156.72,8.219e-05,2]
[335289764,1724074775702,153.76,7.979e-05,2]
[335289766,1724074872785,299.57007155,9.671e-05,2]
[335289767,1724074880963,1343.2610154,9.671e-05,2]
[335289768,1724075198766,156.43,8.219e-05,2]
[335289769,1724075218167,236.36319912,9.899e-05,2]
[335289770,1724075338052,16244.70504131,9.899e-05,2]
[335289791,1724075432128,-320.0,9.921e-05,2]
[335289793,1724075432138,-155.0,9.929e-05,2]
[335289794,1724075432147,-360.0,9.936e-05,2]
[335289796,1724075432157,-200.0,9.98e-05,2]
[335289798,1724075432167,-640.0,9.985e-05,2]
[335289800,1724075432177,-192.14261377,9.985e-05,2]
[335289802,1724075432187,-1050.0,0.0001,2]
[335289803,1724075432196,-784.80527793,0.00010026,2]
[335289805,1724075432206,-156.43,0.00010473,2]
[335289807,1724075432215,-3144.320275,0.000105,2]
[335289808,1724075432224,-207.09329463,0.000107,2]
[335289810,1724075432233,-327.95529512,0.000107,2]
[335289812,1724075432243,-10619.42731615,0.000107,2]
[335289813,1724075432252,-2360.48051365,0.000107,2]
[335289814,1724075432261,-207.0932946,0.00010767,2]
[335289815,1724075432270,-643.818029,0.00010797,2]
[335289817,1724075432280,-215.38591183,0.00010799,2]
[335289819,1724075432292,-851.19,0.00010799,2]
[335289820,1724075432301,-851.19,0.00010799,2]
[335289822,1724075432310,-851.19,0.00010799,2]
[335289823,1724075432320,-851.19,0.00010799,2]
[335289825,1724075432329,-851.19,0.00010799,2]
[335289826,1724075432338,-851.19,0.00010799,2]
[335289827,1724075432347,-851.19,0.00010799,2]
[335289828,1724075432356,-851.19,0.00010799,2]
[335289829,1724075432366,-851.19,0.00010799,2]
[335289830,1724075432375,-851.19,0.00010799,2]
[335289831,1724075432385,-851.19,0.00010799,2]
[335289832,1724075432395,-851.19,0.00010799,2]
[335289833,1724075432405,-851.19,0.00010799,2]
[335289834,1724075432414,-851.19,0.00010799,2]
[335289835,1724075432424,-851.19,0.00010799,2]
[335289836,1724075432433,-851.19,0.00010799,2]
[335289837,1724075432445,-851.19,0.00010799,2]
[335289838,1724075432456,-851.19,0.00010799,2]
[335289839,1724075432466,-851.19,0.00010799,2]
[335289840,1724075432475,-851.19,0.00010799,2]
[335289841,1724075432485,-851.19,0.00010799,2]
[335289842,1724075432494,-851.19,0.00010799,2]
[335289843,1724075432504,-851.19,0.00010799,2]
[335289844,1724075432515,-851.25807715,0.00010799,2]
[335289845,1724075432524,-689.12,0.00010799,2]
[335289846,1724075432533,-689.12,0.00010799,2]
[335289847,1724075432542,-689.12,0.00010799,2]
[335289848,1724075432552,-689.12,0.00010799,2]
[335289849,1724075432563,-689.12,0.00010799,2]
[335289850,1724075432572,-689.12,0.00010799,2]
[335289851,1724075432582,-689.12,0.00010799,2]
[335289852,1724075432592,-689.12,0.00010799,2]
[335289853,1724075432602,-2037.1623,0.000108,2]
[335289854,1724075432611,-6206.8459,0.000108,2]
[335289855,1724075432621,-176086.11069716,0.000108,2]
[335289856,1724075432632,-1386.16050684,0.000108,2]
[335289857,1724075432644,-955.65762198,0.000108,2]
[335289858,1724075432661,-689.12,0.00010799,2]
[335289859,1724075432671,-286351.791722,0.000108,2]
[335289860,1724075432683,-990.58117053,0.000108,2]
[335289861,1724075432695,-732.10144154,0.000108,2]
[335289862,1724075432711,-2871.78515676,0.000108,2]
[335289863,1724075432723,-1353.76120749,0.000108,2]
[335289864,1724075432735,-1533.16988502,0.000108,2]
[335289865,1724075432746,-10808.08059513,0.000108,2]
[335289866,1724075432758,-676.1,0.000108,2]
[335289867,1724075432769,-1181.26213134,0.000108,2]
[335289868,1724075432781,-4484.75092353,0.000108,2]
[335289869,1724075432792,-799.720536,0.000108,2]
[335289875,1724075438120,-207.2180428,0.000107,2]
[335289876,1724075438131,-689.12,0.00010799,2]
[335289877,1724075438141,-689.12,0.00010799,2]
[335289878,1724075438150,-689.12,0.00010799,2]
[335289879,1724075438160,-689.12,0.00010799,2]
[335289880,1724075438169,-689.12,0.00010799,2]
[335289881,1724075438180,-689.12,0.00010799,2]
[335289882,1724075438190,-689.12,0.00010799,2]
[335289883,1724075438199,-689.12,0.00010799,2]
[335289884,1724075438211,-689.12,0.00010799,2]
[335289885,1724075438383,-689.12,0.00010799,2]
[335289886,1724075438393,-689.12,0.00010799,2]
[335289887,1724075438402,-689.12,0.00010799,2]
[335289888,1724075438411,-689.12,0.00010799,2]
[335289889,1724075438420,-689.12,0.00010799,2]
[335289890,1724075438429,-689.31082396,0.00010799,2]
[335289891,1724075438439,-3288.04093239,0.000108,2]
[335289892,1724075438451,-547789.4742037,0.000108,2]
[335289893,1724075438465,-397.5131496,0.000108,2]
[335290068,1724075440325,-1419.82182342,0.000108,2]
[335290070,1724075440336,-909.395,0.000108,2]
[335290273,1724075442619,1636.1401,9.862e-05,2]
[335290336,1724075443207,-294.10704,0.000108,2]
[335290580,1724075446222,-457.87074868,0.000108,2]
[335291630,1724075674749,156.52,8.219e-05,2]
[335291633,1724075865084,16244.70504131,8.219e-05,2]
[335291634,1724075968085,16244.70504131,8.219e-05,2]
[335291635,1724076020407,153.76,7.934e-05,2]
[335291636,1724076102713,181.27,9.886e-05,2]
[335291637,1724076146142,156.31,8.219e-05,2]
[335291638,1724076183357,311.38,9.843e-05,2]
[335291639,1724076219432,1000.0,9.819e-05,2]
[335291640,1724076221784,250.0,9.819e-05,2]
[335291641,1724076243141,16244.70504131,9.843e-05,2]
[335291642,1724076270544,496.89,9.823e-05,2]
[335291643,1724076304493,657.65,9.839e-05,2]
[335291644,1724076308453,637.6377251,9.899e-05,2]
[335291648,1724076358998,292.76862131,9.899e-05,2]
[335291649,1724076370751,280.53,9.844e-05,2]
[335291650,1724076387224,313.21,9.852e-05,2]
[335291692,1724076570393,-3724.90875944,9.934e-05,2]
[335291724,1724076621980,156.31,8.219e-05,2]
[335291730,1724076632292,-1660.54124056,9.934e-05,2]
[335291731,1724076632302,-180.0,9.939e-05,2]
[335291732,1724076632311,-156.3474976,9.941e-05,2]
[335291733,1724076632320,-193.84378897,9.999e-05,2]
[335291734,1724076632330,-653.9611448,0.0001,2]
[335291735,1724076632339,-1441.74024221,0.0001,2]
[335291736,1724076632348,-300.0,0.00010577,2]
[335291737,1724076632359,-659.641,0.00010578,2]
[335291738,1724076632369,-1517.42,0.00010578,2]
[335291739,1724076632378,-5766.99228706,0.00010578,2]
[335291740,1724076632389,-279.84771294,0.00010578,2]
[335291741,1724076632398,-150.0,0.00010601,2]
[335291742,1724076632408,-499.99,0.00010602,2]
[335291743,1724076632416,-10952.02,0.00010602,2]
[335291744,1724076632426,-150.99,0.00010602,2]
[335291745,1724076632435,-299.99,0.00010602,2]
[335291746,1724076632444,-183.89706622,0.00010699,2]
[335291747,1724076632453,-150.99,0.000107,2]
[335291748,1724076632462,-171.44570036,0.000107,2]
[335291749,1724076632471,-152.67384192,0.000107,2]
[335291750,1724076632480,-2135.31236082,0.000107,2]
[335291751,1724076632492,-1333.12763918,0.000107,2]
[335291752,1724076632501,-4644.06375209,0.000107,2]
[335291753,1724076632510,-207.0932946,0.000107,2]
[335291754,1724076632519,-1573.65367576,0.000107,2]
[335291755,1724076632529,-156.31,0.00010734,2]
[335291756,1724076632538,-664.3,0.00010778,2]
[335291757,1724076632547,-1737.69665879,0.0001079,2]
[335291758,1724076632556,-964.91745077,0.0001079,2]
[335291759,1724076632567,-772.77920802,0.0001079,2]
[335291760,1724076632577,-1737.69665879,0.0001079,2]
[335291761,1724076632586,-167.25085883,0.00010797,2]
[335291762,1724076632596,-5122.9686133,0.00010799,2]
[335291763,1724076632608,-1381.95190557,0.00010799,2]
[335291764,1724076632619,-431.18512968,0.00010799,2]
[335291765,1724076632632,-909.30987856,0.00010799,2]
[335291766,1724076632646,-636.79253411,0.00010799,2]
[335291767,1724076632658,-2833.11584592,0.00010799,2]
[335291768,1724076632672,-20156.30609286,0.00010799,2]
[335291769,1724076632684,-628.81538596,0.00010799,2]
[335291770,1724076632694,-468.33170438,0.00010799,2]
[335291771,1724076632704,-500.0,0.00010799,2]
[335291772,1724076632716,-500.0,0.00010799,2]
[335291773,1724076632725,-500.0,0.00010799,2]
[335291774,1724076632735,-500.0,0.00010799,2]
[335291776,1724076632744,-500.0,0.00010799,2]
[335291778,1724076632754,-500.0,0.00010799,2]
[335291780,1724076632763,-500.0,0.00010799,2]
[335291782,1724076632773,-500.0,0.00010799,2]
[335291784,1724076632782,-200.24765558,0.00010799,2]
[335291786,1724076632791,-637.66,0.00010799,2]
[335291787,1724076632801,-637.66,0.00010799,2]
[335291788,1724076632810,-82.23516126,0.00010799,2]
[335291789,1724076632822,-555.42483874,0.00010799,2]
[335291790,1724076632843,-637.66,0.00010799,2]
[335291791,1724076632852,-637.66,0.00010799,2]
[335291792,1724076632861,-637.66,0.00010799,2]
[335291793,1724076632870,-637.66,0.00010799,2]
[335291794,1724076632879,-637.66,0.00010799,2]
[335291795,1724076632891,-637.66,0.00010799,2]
[335291796,1724076632899,-637.66,0.00010799,2]
[335291797,1724076632909,-637.66,0.00010799,2]
[335291798,1724076632918,-637.66,0.00010799,2]
[335291799,1724076632928,-207.1845441,0.00010799,2]
[335291800,1724076632940,-430.4754559,0.00010799,2]
[335291801,1724076632949,-59.68774494,0.00010799,2]
[335291802,1724076632963,-577.97225506,0.00010799,2]
[335291803,1724076632973,-637.66,0.00010799,2]
[335291804,1724076632982,-499.31944702,0.00010799,2]
[335291805,1724076632994,-138.34055298,0.00010799,2]
[335291806,1724076633003,-637.66,0.00010799,2]
[335291807,1724076633013,-563.32512914,0.00010799,2]
[335291808,1724076633025,-74.33487086,0.00010799,2]
[335291809,1724076633034,-426.90051058,0.00010799,2]
[335291810,1724076633045,-210.75948942,0.00010799,2]
[335291811,1724076633055,-637.66,0.00010799,2]
[335291812,1724076633065,-637.66,0.00010799,2]
[335291813,1724076633074,-637.66,0.00010799,2]
[335291814,1724076633084,-637.66,0.00010799,2]
[335291815,1724076633093,-142.31358044,0.00010799,2]
[335291816,1724076633104,-495.34641956,0.00010799,2]
[335291817,1724076633114,-323.6,0.00010799,2]
[335291818,1724076633123,-500.0,0.00010799,2]
[335291819,1724076633133,-500.0,0.00010799,2]
[335291820,1724076633142,-500.0,0.00010799,2]
[335291821,1724076633151,-500.0,0.00010799,2]
[335291822,1724076633161,-500.0,0.00010799,2]
[335291823,1724076633170,-102.61203211,0.00010799,2]
[335291824,1724076633182,-397.38796789,0.00010799,2]
[335291825,1724076633191,-328.08561025,0.00010799,2]
[335291826,1724076633202,-171.91438975,0.00010799,2]
[335291827,1724076633212,-500.0,0.00010799,2]
[335291828,1724076633221,-183.66700319,0.00010799,2]
[335291829,1724076633231,-500.0,0.00010799,2]
[335291830,1724076633240,-500.0,0.00010799,2]
[335291831,1724076633250,-267.75220403,0.00010799,2]
[335291832,1724076633260,-500.0,0.00010799,2]
[335291833,1724076633270,-500.0,0.00010799,2]
[335291834,1724076633280,-500.0,0.00010799,2]
[335291835,1724076633290,-584.9707282,0.00010799,2]
[335291836,1724076633300,-844.21,0.00010799,2]
[335291837,1724076633309,-20.09043503,0.00010799,2]
[335291838,1724076633320,-315.0,0.00010799,2]
[335291839,1724076633331,-509.11956497,0.00010799,2]
[335291840,1724076633356,-96.50948244,0.00010799,2]
[335291841,1724076633367,-747.70051756,0.00010799,2]
[335291842,1724076633378,-844.21,0.00010799,2]
[335291843,1724076633386,-844.21,0.00010799,2]
[335291844,1724076633394,-844.21,0.00010799,2]
[335291845,1724076633402,-833.75073922,0.00010799,2]
[335291846,1724076633414,-10.45926078,0.00010799,2]
[335291847,1724076633423,-464.00709563,0.00010799,2]
[335291848,1724076633435,-380.20290437,0.00010799,2]
[335291849,1724076633444,-67.3289669,0.00010799,2]
[335291850,1724076633455,-569.99999994,0.00010799,2]
[335291851,1724076633467,-206.88103316,0.00010799,2]
[335291852,1724076633476,-145.01896584,0.00010799,2]
[335291853,1724076633488,-699.19103416,0.00010799,2]
[335291854,1724076633497,-844.21,0.00010799,2]
[335291855,1724076633506,-844.21,0.00010799,2]
[335291856,1724076633516,-844.21,0.00010799,2]
[335291857,1724076633525,-804.9264506,0.00010799,2]
[335291858,1724076633537,-39.2835494,0.00010799,2]
[335291859,1724076633546,-564.63533468,0.00010799,2]
[335291861,1724076638300,-156.3474976,9.929e-05,2]
[335291862,1724076638310,-279.57466532,0.00010799,2]
[335291863,1724076638319,-844.21,0.00010799,2]
[335291864,1724076638328,-844.21,0.00010799,2]
[335291865,1724076638337,-844.21,0.00010799,2]
[335291866,1724076638347,-844.21,0.00010799,2]
[335291867,1724076638356,-844.21,0.00010799,2]
[335291868,1724076638367,-844.21,0.00010799,2]
[335291869,1724076638376,-844.21,0.00010799,2]
[335291870,1724076638385,-179.67783292,0.00010799,2]
[335291871,1724076638397,-664.53216708,0.00010799,2]
[335291872,1724076638406,-844.38411172,0.00010799,2]
[335291874,1724076638415,-365.50885499,0.00010799,2]
[335291875,1724076638424,-632.35030567,0.000108,2]
[335291876,1724076638435,-66.64969433,0.000108,2]
[335291877,1724076638444,-2538.04262872,0.000108,2]
[335291878,1724076638455,-7969.17193469,0.000108,2]
[335291879,1724076638466,-3458.69314524,0.000108,2]
[335291880,1724076638478,-291.667784,0.000108,2]
[335291881,1724076638489,-17539.97910004,0.000108,2]
[335291882,1724076638500,-28740.04165578,0.000108,2]
[335291883,1724076638511,-1064.43990038,0.000108,2]
[335291884,1724076638522,-5340.98495427,0.000108,2]
[335291885,1724076638533,-338.26352533,0.000108,2]
[335291886,1724076638544,-315.94706267,0.000108,2]
[335291887,1724076638555,-421.399227,0.000108,2]
[335291888,1724076638566,-785.23100942,0.000108,2]
[335291889,1724076638577,-6016.27157419,0.000108,2]
[335291890,1724076638588,-820878.22052513,0.000108,2]
[335291891,1724076638599,-262650.62789288,0.000108,2]
[335291892,1724076638612,-7214.73959698,0.000108,2]
[335291893,1724076638623,-1145.08013776,0.000108,2]
[335291894,1724076638634,-14798.35396183,0.000108,2]
[335291895,1724076638645,-11216.25702667,0.000108,2]
[335291896,1724076638657,-20570.8866,0.000108,2]
[335291897,1724076638671,-5400.0,0.000108,2]
[335291898,1724076638683,-509.16789362,0.000108,2]
[335291899,1724076638694,-7777.69537663,0.000108,2]
[335291900,1724076638707,-292.008237,0.000108,2]